[Event "EYCC Open-U12 2019"]
[Site "Bratislava"]
[Date "2019.08.07"]
[Round "6.20"]
[White "Codreanu, Marius"]
[Black "Navumenka, Mikhei"]
[Result "0-1"]
[ECO "C13"]
[WhiteElo "1834"]
[BlackElo "2196"]
[Annotator "NA"]
[PlyCount "118"]
[EventDate "2019.08.02"]
[EventType "swiss"]
[EventCountry "SVK"]
[SourceTitle "playchess.com"]
[Source "ChessBase"]
[SourceQuality "1"]
[TimeControl "40/5400+30:1800+30"]

1. e4 {[%emt 0:00:00]} e6 {[%emt 0:00:00]} 2. d4 {[%emt 0:00:00]} d5 {[%emt 0:00:00]} 3. Nc3 {[%emt 0:00:00]} Nf6 {[%emt 0:00:00]} 4. Bg5 {[%emt 0:00:03]} Be7 {[%emt 0:00:00]} 5. e5 {[%emt 0:00:32]} Ne4 {[%emt 0:02:31]} 6. Bxe7 {[%emt 0:09:14]} Qxe7 {[%emt 0:00:31]} 7. Bd3 {[%emt 0:02:43]} Nxc3 {[%emt 0:06:25]} 8. bxc3 {[%emt 0:00:03]} c5 {[%emt 0:00:07]} 9. f4 {[%emt 0:08:59]} Nc6 {[%emt 0:14:49]} 10. Nf3 {[%emt 0:01:30]} cxd4 {[%emt 0:00:48]} 11. cxd4 {[%emt 0:00:10]} Qb4+ {[%emt 0:00:07]} 12. Qd2 {[%emt 0:00:27]} Qxd2+ {[%emt 0:00:06]} 13. Kxd2 {[%emt 0:00:07]} Bd7 {[%emt 0:00:09]} 14. Rab1 {[%emt 0:03:01]} Na5 {[%emt 0:00:34]} 15. Ke2 {[%emt 0:25:40]} Ke7 {[%emt 0:04:22]} 16. Nd2 {[%emt 0:02:25]} Rac8 {[%emt 0:16:50]} 17. Rhc1 {[%emt 0:16:49]} Bc6 {[%emt 0:10:20]} 18. g3 {[%emt 0:06:40]} Rhd8 {[%emt 0:03:34]} 19. c3 {[%emt 0:04:54]} b6 {[%emt 0:01:25]} 20. Nb3 {[%emt 0:02:30]} Nc4 {[%emt 0:00:12]} 21. Nd2 {[%emt 0:00:38]} Bb7 {[%emt 0:15:32]} 22. f5 {[%emt 0:06:48]} Ba6 {[%emt 0:03:49]} 23. fxe6 {[%emt 0:02:58]} fxe6 {[%emt 0:00:11]} 24. Nxc4 {[%emt 0:01:54]} Bxc4 {[%emt 0:00:05]} 25. Rb4 {[%emt 0:01:23]} Bxd3+ {[%emt 0:01:23]} 26. Kxd3 {[%emt 0:00:02]} Rf8 {[%emt 0:00:07]} 27. Ke2 {[%emt 0:01:02]} Rf5 {[%emt 0:00:33]} 28. Rbb1 {[%emt 0:00:31]} Kd7 {[%emt 0:03:03]} 29. a4 {[%emt 0:02:37]} Rcf8 {[%emt 0:02:36]} 30. Kd3 {[%emt 0:00:44]} Rf2 {[%emt 0:01:28]} 31. Re1 {[%emt 0:00:12]} Rxh2 {[%emt 0:02:03]} 32. a5 {[%emt 0:00:39]} Rf3+ {[%emt 0:00:27]} 33. Re3 {[%emt 0:00:06]} Rff2 {[%emt 0:00:05]} 34. Ree1 {[%emt 0:00:57]} Kc6 {[%emt 0:01:02]} 35. axb6 {[%emt 0:00:12]} axb6 {[%emt 0:00:01]} 36. Rf1 {[%emt 0:00:54]} Rd2+ {[%emt 0:02:08]} 37. Ke3 {[%emt 0:00:05]} h5 {[%emt 0:03:01]} 38. Kf4 {[%emt 0:00:54]} Rd3 {[%emt 0:00:30]} 39. Rb3 {[%emt 0:00:26]} Kc7 {[%emt 0:02:11]} 40. g4 {[%emt 0:00:00]} hxg4 {[%emt 0:00:00]} 41. Kxg4 {[%emt 0:01:12]} Rhh3 {[%emt 0:04:02]} 42. Rg1 {[%emt 0:03:03]} Kc6 {[%emt 0:03:01]} 43. Kg5 {[%emt 0:01:06]} Rhg3+ {[%emt 0:09:28]} 44. Rxg3 {[%emt 0:00:05]} Rxg3+ {[%emt 0:00:10]} 45. Kh4 {[%emt 0:00:14]} Rg1 {[%emt 0:01:01]} 46. Kh5 {[%emt 0:00:32]} g5 {[%emt 0:00:36]} 47. Kg6 {[%emt 0:00:47]} g4 {[%emt 0:02:12]} 48. Kf6 {[%emt 0:00:38]} Kd7 {[%emt 0:00:18]} 49. Rxb6 {[%emt 0:00:33]} Rf1+ {[%emt 0:00:25]} 50. Kg5 {[%emt 0:00:37]} g3 {[%emt 0:00:18]} 51. Rb2 {[%emt 0:00:31]} Rf2 {[%emt 0:00:03]} 52. Rb1 {[%emt 0:03:07]} g2 {[%emt 0:01:13]} 53. Rg1 {[%emt 0:00:13]} Kc6 {[%emt 0:00:23]} 54. Kg4 {[%emt 0:00:55]} Kb5 {[%emt 0:02:04]} 55. Kg3 {[%emt 0:00:19]} Rb2 {[%emt 0:02:28]} 56. Kh2 {[%emt 0:00:55]} Kc4 {[%emt 0:00:12]} 57. Ra1 {[%emt 0:00:23]} Kxc3 {[%emt 0:00:06]} 58. Ra6 {[%emt 0:00:17]} Kxd4 {[%emt 0:00:02]} 59. Rxe6 {[%emt 0:00:07]} Re2 {[%emt 0:00:04]} 0-1

[Event "EYCC Open-U12 2019"]
[Site "Bratislava"]
[Date "2019.08.07"]
[Round "6.21"]
[White "Celik, Hasan Huseyin"]
[Black "Bialiauski, Artsiom"]
[Result "1/2-1/2"]
[ECO "C30"]
[WhiteElo "1903"]
[BlackElo "1784"]
[Annotator "NA"]
[PlyCount "114"]
[EventDate "2019.08.02"]
[EventType "swiss"]
[EventCountry "SVK"]
[SourceTitle "playchess.com"]
[Source "ChessBase"]
[SourceQuality "1"]
[TimeControl "40/5400+30:1800+30"]

1. e4 e5 2. f4 Bc5 3. Nf3 d6 4. c3 Nf6 5. Qc2 O-O 6. Bc4 Nc6 7. b4 Bb6 8. b5 Na5 9. Be2 Bg4 10. d3 Bxf3 11. Bxf3 exf4 12. Bxf4 Qd7 13. a4 Qe6 14. Nd2 d5 15. Qa2 c6 16. bxc6 bxc6 17. Bg3 Rfe8 18. h3 Qe7 19. e5 Nd7 20. d4 Qg5 21. Bf2 f6 22. O-O fxe5 23. Bg4 Qe7 24. Rae1 Qd6 25. Bg3 Nf6 26. Bd1 Nd7 27. Bg4 Nf6 28. Bd1 Nd7 29. Kh2 Rad8 30. dxe5 Qe7 31. c4 Nc5 32. cxd5 cxd5 33. Bc2 Ne6 34. Qb1 g6 35. Rf6 Nf8 36. Bh4 Qc7 37. Bg3 Qe7 38. Ref1 Bc7 39. Re1 Nd7 40. Ra6 Bb6 41. Nf3 Rc8 42. Bb3 Nxb3 43. Qxb3 Nc5 44. Qxd5+ Qe6 45. Qxe6+ Rxe6 46. Nd4 Ree8 47. Rxb6 axb6 48. Nb5 Re6 49. Rc1 Rb8 50. Nc7 Re7 51. Nd5 Re6 52. Nc7 Re7 53. Nd5 Re6 54. a5 Nb3 55. Rc7 Nxa5 56. Nf6+ Rxf6 57. exf6 Rf8 1/2-1/2

[Event "EYCC Open-U12 2019"]
[Site "Bratislava"]
[Date "2019.08.07"]
[Round "6.22"]
[White "Krawczyk, Flawian"]
[Black "Konyves, Almos"]
[Result "0-1"]
[ECO "B56"]
[WhiteElo "1848"]
[BlackElo "2104"]
[Annotator "NA"]
[PlyCount "76"]
[EventDate "2019.08.02"]
[EventType "swiss"]
[EventCountry "SVK"]
[SourceTitle "playchess.com"]
[Source "ChessBase"]
[SourceQuality "1"]
[TimeControl "40/5400+30:1800+30"]

1. e4 {[%emt 0:00:00]} c5 {[%emt 0:00:00]} 2. Nf3 {[%emt 0:00:00]} Nc6 {[%emt 0:00:00]} 3. d4 {[%emt 0:00:36]} cxd4 {[%emt 0:00:00]} 4. Nxd4 {[%emt 0:00:02]} Nf6 {[%emt 0:00:00]} 5. Nc3 {[%emt 0:00:14]} d6 {[%emt 0:00:06]} 6. g3 {[%emt 0:01:12]} e5 {[%emt 0:04:26]} 7. Nb3 {[%emt 0:01:28]} Be7 {[%emt 0:00:35]} 8. Bg2 {[%emt 0:00:10]} O-O {[%emt 0:00:16]} 9. O-O {[%emt 0:00:19]} Be6 {[%emt 0:00:33]} 10. Bg5 {[%emt 0:02:35]} Ne8 {[%emt 0:07:11]} 11. Bxe7 {[%emt 0:00:45]} Qxe7 {[%emt 0:00:14]} 12. Nd5 {[%emt 0:04:21]} Bxd5 {[%emt 0:00:06]} 13. Qxd5 {[%emt 0:00:57]} Rc8 {[%emt 0:03:46]} 14. c3 {[%emt 0:01:15]} Nc7 {[%emt 0:02:00]} 15. Qd2 {[%emt 0:03:06]} Rcd8 {[%emt 0:05:00]} 16. Rad1 {[%emt 0:03:11]} Ne6 {[%emt 0:01:54]} 17. Na1 {[%emt 0:06:58]} Nc5 {[%emt 0:13:50]} 18. Nc2 {[%emt 0:02:01]} Qe6 {[%emt 0:00:47]} 19. b3 {[%emt 0:03:57]} Qg6 {[%emt 0:02:38]} 20. Rfe1 {[%emt 0:03:30]} Ne7 {[%emt 0:02:44]} 21. f4 {[%emt 0:09:49]} exf4 {[%emt 0:09:44]} 22. gxf4 {[%emt 0:03:03]} d5 {[%emt 0:08:21]} 23. c4 {[%emt 0:15:47]} Qb6 {[%emt 0:06:34]} 24. exd5 {[%emt 0:04:55]} Nd3+ {[%emt 0:05:12]} 25. Re3 {[%emt 0:00:59]} Nxf4 {[%emt 0:03:17]} 26. Qd4 {[%emt 0:01:03]} Qh6 {[%emt 0:02:22]} 27. Rxe7 {[%emt 0:07:38]} Nxg2 {[%emt 0:03:12]} 28. Re4 {[%emt 0:00:48]} f5 {[%emt 0:01:10]} 29. Re2 {[%emt 0:04:28]} Nf4 {[%emt 0:02:08]} 30. Red2 {[%emt 0:01:18]} Rde8 {[%emt 0:01:38]} 31. Ne3 {[%emt 0:03:14]} Rxe3 {[%emt 0:02:50]} 32. Qxe3 {[%emt 0:00:13]} Nh3+ {[%emt 0:00:04]} 33. Qxh3 {[%emt 0:00:06]} Qxh3 {[%emt 0:00:05]} 34. d6 {[%emt 0:00:12]} Qe3+ {[%emt 0:00:50]} 35. Kf1 {[%emt 0:00:29]} Qf3+ {[%emt 0:01:38]} 36. Kg1 {[%emt 0:00:03]} Rf6 {[%emt 0:00:27]} 37. h4 {[%emt 0:00:12]} Rg6+ {[%emt 0:00:06]} 38. Kh2 {[%emt 0:00:07]} Qg3+ {[%emt 0:00:04]} 0-1

[Event "EYCC Open-U12 2019"]
[Site "Bratislava"]
[Date "2019.08.07"]
[Round "6.23"]
[White "Wahlgreen, Noah"]
[Black "Nastore, Pavel-Alexandru"]
[Result "0-1"]
[ECO "B90"]
[WhiteElo "1743"]
[BlackElo "2084"]
[Annotator "NA"]
[PlyCount "66"]
[EventDate "2019.08.02"]
[EventType "swiss"]
[EventCountry "SVK"]
[SourceTitle "playchess.com"]
[Source "ChessBase"]
[SourceQuality "1"]
[TimeControl "40/5400+30:1800+30"]

1. e4 {[%emt 0:00:00]} c5 {[%emt 0:00:00]} 2. Nf3 {[%emt 0:00:00]} d6 {[%emt 0:00:00]} 3. d4 {[%emt 0:00:00]} cxd4 {[%emt 0:00:00]} 4. Nxd4 {[%emt 0:00:00]} Nf6 {[%emt 0:00:00]} 5. Nc3 {[%emt 0:00:12]} a6 {[%emt 0:00:00]} 6. Be3 {[%emt 0:00:16]} e5 {[%emt 0:00:00]} 7. Nb3 {[%emt 0:00:09]} Be6 {[%emt 0:00:00]} 8. h3 {[%emt 0:00:13]} h5 {[%emt 0:02:52]} 9. Qf3 {[%emt 0:00:12]} Nbd7 {[%emt 0:11:49]} 10. a4 {[%emt 0:01:52]} Rc8 {[%emt 0:12:26]} 11. Bd3 {[%emt 0:00:43]} Be7 {[%emt 0:29:02]} 12. O-O {[%emt 0:01:29]} O-O {[%emt 0:05:11]} 13. Rad1 {[%emt 0:23:38]} Nb6 {[%emt 0:02:53]} 14. Rd2 {[%emt 0:03:39]} Rxc3 {[%emt 0:11:55]} 15. Bxb6 {[%emt 0:05:14]} Qxb6 {[%emt 0:00:01]} 16. bxc3 {[%emt 0:00:14]} Rc8 {[%emt 0:00:07]} 17. a5 {[%emt 0:03:13]} Qc7 {[%emt 0:00:33]} 18. c4 {[%emt 0:00:39]} Bxc4 19. Bxc4 {[%emt 0:00:22]} Qxc4 {[%emt 0:04:52]} 20. Re1 {[%emt 0:01:13]} Qb4 {[%emt 0:00:25]} 21. Qe3 {[%emt 0:11:21]} Rc3 {[%emt 0:00:51]} 22. Qe2 {[%emt 0:00:52]} Rc4 {[%emt 0:07:06]} 23. f3 {[%emt 0:00:28]} Ne8 {[%emt 0:00:21]} 24. Kh2 {[%emt 0:03:12]} Bg5 {[%emt 0:00:48]} 25. Rd3 {[%emt 0:03:04]} Rxc2 {[%emt 0:01:08]} 26. Qxc2 {[%emt 0:02:21]} Qxe1 {[%emt 0:00:05]} 27. g3 {[%emt 0:01:49]} h4 {[%emt 0:00:03]} 28. gxh4 {[%emt 0:01:31]} Be3 {[%emt 0:02:30]} 29. Rd1 {[%emt 0:01:14]} Bf4+ {[%emt 0:00:07]} 30. Kg2 {[%emt 0:00:11]} Qg3+ {[%emt 0:00:04]} 31. Kf1 {[%emt 0:00:34]} Qxf3+ {[%emt 0:00:05]} 32. Ke1 {[%emt 0:00:18]} Qe3+ {[%emt 0:01:24]} 33. Kf1 {[%emt 0:00:41]} Qxh3+ {[%emt 0:00:09]} 0-1

[Event "EYCC Open-U12 2019"]
[Site "Bratislava"]
[Date "2019.08.07"]
[Round "6.24"]
[White "Dovbnia, Nikita"]
[Black "Foerster-Yialamas, Lucas"]
[Result "1/2-1/2"]
[ECO "A04"]
[WhiteElo "1777"]
[BlackElo "2028"]
[Annotator "NA"]
[PlyCount "90"]
[EventDate "2019.08.02"]
[EventType "swiss"]
[EventCountry "SVK"]
[SourceTitle "playchess.com"]
[Source "ChessBase"]
[SourceQuality "1"]
[TimeControl "40/5400+30:1800+30"]

1. Nf3 {[%emt 0:00:00]} c5 {[%emt 0:00:00]} 2. c4 {[%emt 0:00:00]} Nc6 {[%emt 0:00:12]} 3. Nc3 {[%emt 0:00:06]} e5 {[%emt 0:00:32]} 4. g3 {[%emt 0:01:21]} d6 {[%emt 0:00:29]} 5. Bg2 {[%emt 0:00:18]} g6 {[%emt 0:00:18]} 6. O-O {[%emt 0:00:09]} Bg7 {[%emt 0:00:08]} 7. Ne1 {[%emt 0:01:53]} Nge7 {[%emt 0:02:39]} 8. Nc2 {[%emt 0:00:06]} Be6 {[%emt 0:01:43]} 9. Ne3 {[%emt 0:01:03]} O-O {[%emt 0:00:42]} 10. Ned5 {[%emt 0:01:41]} Rb8 {[%emt 0:02:41]} 11. d3 {[%emt 0:02:31]} a6 {[%emt 0:04:30]} 12. a4 {[%emt 0:04:19]} b6 {[%emt 0:08:41]} 13. Bd2 {[%emt 0:12:19]} h6 {[%emt 0:03:46]} 14. e3 {[%emt 0:12:33]} f5 {[%emt 0:08:16]} 15. Rb1 {[%emt 0:05:33]} Nb4 {[%emt 0:16:46]} 16. Nxb4 {[%emt 0:04:07]} cxb4 {[%emt 0:00:03]} 17. Nd5 {[%emt 0:00:27]} a5 {[%emt 0:01:12]} 18. Nxe7+ {[%emt 0:10:13]} Qxe7 {[%emt 0:00:08]} 19. Qe2 {[%emt 0:00:31]} Qd7 {[%emt 0:07:27]} 20. b3 {[%emt 0:01:53]} d5 {[%emt 0:02:16]} 21. Rfd1 {[%emt 0:11:29]} dxc4 {[%emt 0:03:39]} 22. dxc4 {[%emt 0:02:23]} Qe7 {[%emt 0:01:35]} 23. Bc1 {[%emt 0:03:22]} Rfd8 {[%emt 0:05:00]} 24. Bb2 {[%emt 0:00:51]} e4 {[%emt 0:06:38]} 25. Bd4 {[%emt 0:02:27]} h5 {[%emt 0:09:05]} 26. Qb2 {[%emt 0:04:06]} g5 {[%emt 0:08:52]} 27. Bxg7 {[%emt 0:01:00]} Qxg7 {[%emt 0:00:39]} 28. Rd4 {[%emt 0:02:48]} Kh7 {[%emt 0:02:17]} 29. Rbd1 {[%emt 0:00:33]} Rb7 {[%emt 0:00:42]} 30. Qa1 {[%emt 0:03:06]} Rbd7 {[%emt 0:00:55]} 31. R1d2 {[%emt 0:02:55]} g4 {[%emt 0:00:39]} 32. Qd1 {[%emt 0:00:42]} Kg6 {[%emt 0:00:26]} 33. h4 {[%emt 0:02:14]} Kh7 {[%emt 0:00:27]} 34. Kf1 {[%emt 0:02:05]} Qf7 {[%emt 0:01:14]} 35. Ke1 {[%emt 0:00:31]} Kg7 {[%emt 0:00:19]} 36. Bf1 {[%emt 0:01:34]} Qe7 {[%emt 0:00:37]} 37. Rxd7 {[%emt 0:00:14]} Rxd7 {[%emt 0:00:07]} 38. Rxd7 {[%emt 0:00:06]} Qxd7 {[%emt 0:00:07]} 39. Qd4+ {[%emt 0:00:17]} Qxd4 {[%emt 0:00:39]} 40. exd4 {[%emt 0:00:00]} Bd7 {[%emt 0:00:00]} 41. Kd2 {[%emt 0:01:10]} Kf6 {[%emt 0:01:35]} 42. Be2 {[%emt 0:01:14]} Be8 {[%emt 0:02:19]} 43. Ke3 {[%emt 0:03:49]} Bf7 {[%emt 0:00:56]} 44. Bd1 {[%emt 0:00:56]} Be6 {[%emt 0:01:13]} 45. Kf4 {[%emt 0:00:17]} Bf7 {[%emt 0:00:21]} 1/2-1/2

[Event "EYCC Open-U12 2019"]
[Site "Bratislava"]
[Date "2019.08.07"]
[Round "6.25"]
[White "Pavesi, Brando"]
[Black "Rotunno, Flavio"]
[Result "1-0"]
[ECO "A45"]
[WhiteElo "2109"]
[BlackElo "1819"]
[Annotator "NA"]
[PlyCount "47"]
[EventDate "2019.08.02"]
[EventType "swiss"]
[EventCountry "SVK"]
[SourceTitle "playchess.com"]
[Source "ChessBase"]
[SourceQuality "1"]
[TimeControl "40/5400+30:1800+30"]

1. d4 {[%emt 0:00:00]} Nf6 {[%emt 0:00:00]} 2. Bf4 {[%emt 0:00:08]} e6 {[%emt 0:00:00]} 3. e3 {[%emt 0:00:14]} c5 {[%emt 0:00:00]} 4. Nf3 {[%emt 0:00:12]} d5 {[%emt 0:00:03]} 5. c3 {[%emt 0:01:00]} Nc6 {[%emt 0:00:12]} 6. Nbd2 {[%emt 0:00:47]} Bd6 {[%emt 0:00:21]} 7. Bg3 {[%emt 0:00:54]} O-O {[%emt 0:00:15]} 8. Bb5 {[%emt 0:01:36]} Ne7 {[%emt 0:02:32]} 9. Bd3 {[%emt 0:01:29]} b6 {[%emt 1:16:08]} 10. e4 {[%emt 0:03:43]} dxe4 {[%emt 0:03:33]} 11. Nxe4 {[%emt 0:00:21]} Nf5 {[%emt 0:01:36]} 12. Nxd6 {[%emt 0:23:05]} Nxg3 {[%emt 0:06:10]} 13. Nxf7 {[%emt 0:06:06]} Rxf7 {[%emt 0:00:11]} 14. hxg3 {[%emt 0:00:06]} g6 {[%emt 0:02:47]} 15. Ne5 {[%emt 0:12:00]} Rg7 {[%emt 0:01:09]} 16. dxc5 {[%emt 0:02:10]} bxc5 {[%emt 0:01:14]} 17. Qe2 {[%emt 0:06:44]} Bb7 {[%emt 0:01:08]} 18. O-O-O {[%emt 0:02:23]} Qc7 {[%emt 0:00:46]} 19. f4 {[%emt 0:04:17]} Rb8 {[%emt 0:00:28]} 20. Rh4 {[%emt 0:06:37]} Bc8 {[%emt 0:00:50]} 21. Bc4 {[%emt 0:05:30]} a5 {[%emt 0:00:29]} 22. Qd2 {[%emt 0:03:39]} a4 {[%emt 0:00:34]} 23. Qd8+ {[%emt 0:00:09]} Qxd8 {[%emt 0:00:07]} 24. Rxd8+ {[%emt 0:00:04]} 1-0

[Event "EYCC Open-U12 2019"]
[Site "Bratislava"]
[Date "2019.08.07"]
[Round "6.26"]
[White "Tran, David"]
[Black "Venkatesan, Kavin"]
[Result "1-0"]
[ECO "B23"]
[WhiteElo "2112"]
[BlackElo "1797"]
[Annotator "NA"]
[PlyCount "145"]
[EventDate "2019.08.02"]
[EventType "swiss"]
[EventCountry "SVK"]
[SourceTitle "playchess.com"]
[Source "ChessBase"]
[SourceQuality "1"]
[TimeControl "40/5400+30:1800+30"]

1. e4 {[%emt 0:00:00]} c5 {[%emt 0:00:00]} 2. Nc3 {[%emt 0:00:00]} a6 {[%emt 0:00:00]} 3. g3 {[%emt 0:00:20]} b5 {[%emt 0:00:00]} 4. Bg2 {[%emt 0:00:04]} Bb7 {[%emt 0:00:00]} 5. d3 {[%emt 0:00:05]} e6 {[%emt 0:00:41]} 6. f4 {[%emt 0:00:16]} Ne7 {[%emt 0:00:41]} 7. Be3 {[%emt 0:01:40]} d6 {[%emt 0:00:20]} 8. Nf3 {[%emt 0:00:10]} g6 {[%emt 0:00:49]} 9. O-O {[%emt 0:05:16]} Bg7 {[%emt 0:00:08]} 10. Qd2 {[%emt 0:00:42]} f5 {[%emt 0:08:06]} 11. Ng5 {[%emt 0:05:27]} Qc8 {[%emt 0:07:28]} 12. e5 {[%emt 0:06:46]} d5 {[%emt 0:01:18]} 13. d4 {[%emt 0:00:48]} cxd4 {[%emt 0:07:27]} 14. Qxd4 {[%emt 0:03:15]} h6 {[%emt 0:01:15]} 15. Nf3 {[%emt 0:00:27]} O-O {[%emt 0:01:56]} 16. a4 {[%emt 0:04:44]} Nbc6 {[%emt 0:02:04]} 17. Qd2 {[%emt 0:00:13]} b4 {[%emt 0:01:53]} 18. Ne2 {[%emt 0:01:36]} a5 {[%emt 0:03:46]} 19. Ned4 {[%emt 0:00:44]} Nxd4 {[%emt 0:02:16]} 20. Nxd4 {[%emt 0:00:26]} Ba6 {[%emt 0:00:24]} 21. Rfd1 {[%emt 0:00:30]} Kh7 {[%emt 0:01:49]} 22. Bf3 {[%emt 0:06:06]} Nc6 {[%emt 0:07:13]} 23. Nb5 {[%emt 0:01:20]} Bxb5 {[%emt 0:00:53]} 24. axb5 {[%emt 0:00:07]} Ne7 {[%emt 0:00:49]} 25. Qd4 {[%emt 0:01:21]} Rd8 {[%emt 0:11:29]} 26. c3 {[%emt 0:14:34]} bxc3 {[%emt 0:04:59]} 27. bxc3 {[%emt 0:00:56]} a4 {[%emt 0:05:36]} 28. Qb4 {[%emt 0:01:02]} Rd7 {[%emt 0:05:39]} 29. Bd4 {[%emt 0:05:31]} Rb7 {[%emt 0:07:01]} 30. Rxa4 {[%emt 0:06:51]} Nc6 {[%emt 0:02:56]} 31. Rxa8 {[%emt 0:00:15]} Qxa8 {[%emt 0:00:07]} 32. Qb2 {[%emt 0:01:08]} Nxd4 {[%emt 0:01:23]} 33. cxd4 {[%emt 0:00:14]} Qa4 {[%emt 0:01:20]} 34. Be2 {[%emt 0:01:01]} Qa7 {[%emt 0:02:37]} 35. Ra1 {[%emt 0:00:35]} Qb8 {[%emt 0:00:33]} 36. Ra6 {[%emt 0:02:03]} Rb6 {[%emt 0:00:30]} 37. Qa3 {[%emt 0:00:54]} g5 {[%emt 0:01:37]} 38. Ra7 {[%emt 0:03:19]} gxf4 {[%emt 0:05:32]} 39. Qe7 {[%emt 0:00:09]} Qg8 {[%emt 0:00:52]} 40. gxf4 {[%emt 0:00:00]} Kh8 {[%emt 0:00:00]} 41. Kf2 {[%emt 0:01:05]} Rb8 {[%emt 0:03:03]} 42. Qf7 {[%emt 0:05:32]} Qxf7 {[%emt 0:00:55]} 43. Rxf7 {[%emt 0:00:02]} Kg8 {[%emt 0:00:50]} 44. Re7 {[%emt 0:00:24]} Rb6 {[%emt 0:00:18]} 45. Rc7 {[%emt 0:00:18]} Rb8 {[%emt 0:01:16]} 46. Rc6 {[%emt 0:00:41]} Kf7 {[%emt 0:00:08]} 47. b6 {[%emt 0:00:40]} Ke7 {[%emt 0:03:06]} 48. Rc7+ {[%emt 0:00:31]} Kd8 {[%emt 0:02:33]} 49. Rxg7 {[%emt 0:00:06]} Rxb6 {[%emt 0:00:08]} 50. Rh7 {[%emt 0:00:04]} Rb4 {[%emt 0:00:15]} 51. Ke3 {[%emt 0:00:06]} Rb3+ {[%emt 0:00:25]} 52. Bd3 {[%emt 0:00:07]} Rb2 {[%emt 0:00:24]} 53. Rxh6 {[%emt 0:00:04]} Kd7 {[%emt 0:00:15]} 54. Rh7+ {[%emt 0:00:02]} Ke8 {[%emt 0:00:40]} 55. h4 {[%emt 0:00:05]} Rh2 {[%emt 0:00:09]} 56. h5 {[%emt 0:00:03]} Rh3+ {[%emt 0:00:22]} 57. Kd2 {[%emt 0:00:28]} Rh4 {[%emt 0:02:20]} 58. Bb5+ {[%emt 0:00:55]} Kf8 {[%emt 0:00:32]} 59. Ke3 {[%emt 0:01:11]} Rh3+ {[%emt 0:00:12]} 60. Kf2 {[%emt 0:00:04]} Rh4 {[%emt 0:00:35]} 61. Kg3 {[%emt 0:00:08]} Rg4+ {[%emt 0:00:42]} 62. Kf3 {[%emt 0:00:34]} Rh4 {[%emt 0:00:40]} 63. Bd7 {[%emt 0:00:11]} Kg8 {[%emt 0:00:22]} 64. Rh6 {[%emt 0:00:16]} Kg7 {[%emt 0:00:22]} 65. Rg6+ {[%emt 0:00:10]} Kh7 {[%emt 0:00:11]} 66. Bxe6 {[%emt 0:00:08]} Rxh5 {[%emt 0:00:10]} 67. Rg5 {[%emt 0:00:05]} Rh3+ {[%emt 0:00:26]} 68. Rg3 {[%emt 0:00:04]} Rh1 {[%emt 0:00:13]} 69. Bxf5+ {[%emt 0:00:11]} Kh8 {[%emt 0:00:17]} 70. Rh3+ {[%emt 0:00:03]} Rxh3+ {[%emt 0:00:13]} 71. Bxh3 {[%emt 0:00:04]} Kg7 {[%emt 0:00:25]} 72. f5 {[%emt 0:00:05]} Kf7 {[%emt 0:00:08]} 73. f6 {[%emt 0:00:06] Ke6} 1-0

[Event "EYCC Open-U12 2019"]
[Site "Bratislava"]
[Date "2019.08.07"]
[Round "6.27"]
[White "Soderstrom, Adrian"]
[Black "Shinkarov, Artem"]
[Result "0-1"]
[ECO "C07"]
[WhiteElo "1970"]
[BlackElo "1798"]
[Annotator "NA"]
[PlyCount "92"]
[EventDate "2019.08.02"]
[EventType "swiss"]
[EventCountry "SVK"]
[SourceTitle "playchess.com"]
[Source "ChessBase"]
[SourceQuality "1"]
[TimeControl "40/5400+30:1800+30"]

1. e4 {[%emt 0:00:00]} e6 {[%emt 0:00:00]} 2. d4 {[%emt 0:00:00]} d5 {[%emt 0:00:00]} 3. Nd2 {[%emt 0:00:11]} c5 {[%emt 0:00:00]} 4. c3 {[%emt 0:00:13]} Nc6 {[%emt 0:00:12]} 5. Ngf3 {[%emt 0:00:10]} dxe4 {[%emt 0:00:57]} 6. Nxe4 {[%emt 0:00:09]} cxd4 {[%emt 0:00:05]} 7. cxd4 {[%emt 0:00:08]} Be7 {[%emt 0:00:22]} 8. Bd3 {[%emt 0:00:53]} Nf6 {[%emt 0:00:18]} 9. O-O {[%emt 0:01:31]} O-O {[%emt 0:00:20]} 10. Bb1 {[%emt 0:20:15]} Nxe4 {[%emt 0:34:30]} 11. Bxe4 {[%emt 0:03:47]} g6 {[%emt 0:00:26]} 12. Bh6 {[%emt 0:07:18]} Re8 {[%emt 0:00:22]} 13. Rc1 {[%emt 0:09:45]} Bf6 {[%emt 0:18:18]} 14. Qd3 {[%emt 0:25:40]} Nxd4 {[%emt 0:08:22]} 15. Rfd1 {[%emt 0:00:50]} e5 {[%emt 0:00:34]} 16. Nxd4 {[%emt 0:02:32]} exd4 {[%emt 0:01:43]} 17. Qf3 {[%emt 0:03:21]} Qe7 {[%emt 0:10:23]} 18. Bd5 {[%emt 0:03:48]} a5 {[%emt 0:10:02]} 19. g4 {[%emt 0:02:19]} Be6 {[%emt 0:02:38]} 20. Bxb7 {[%emt 0:06:11]} Bxg4 {[%emt 0:00:12]} 21. Qxg4 {[%emt 0:06:06]} Qxb7 {[%emt 0:00:08]} 22. Rd3 {[%emt 0:00:55]} Rac8 {[%emt 0:06:30]} 23. Rcd1 {[%emt 0:01:25]} Qxb2 {[%emt 0:01:22]} 24. Rf3 {[%emt 0:00:42]} Qe2 {[%emt 0:00:47]} 25. Rdd3 {[%emt 0:01:13]} Qe6 {[%emt 0:03:01]} 26. Qf4 {[%emt 0:01:42]} Be5 {[%emt 0:00:11]} 27. Qh4 {[%emt 0:00:23]} Bh8 {[%emt 0:01:01]} 28. Kg2 {[%emt 0:00:53]} Qe4 {[%emt 0:00:31]} 29. Qh3 {[%emt 0:00:14]} Rc5 {[%emt 0:00:39]} 30. Qd7 {[%emt 0:00:32]} Qe7 {[%emt 0:00:33]} 31. Qg4 {[%emt 0:00:34]} Qe6 {[%emt 0:00:20]} 32. Qg3 {[%emt 0:01:26]} Be5 {[%emt 0:00:13]} 33. Qh4 {[%emt 0:00:09]} Qe7 {[%emt 0:00:50]} 34. Bg5 {[%emt 0:00:27]} Qe6 {[%emt 0:00:36]} 35. Bh6 {[%emt 0:00:48]} Bh8 {[%emt 0:00:17]} 36. Qf4 {[%emt 0:00:58]} Rf5 {[%emt 0:00:38]} 37. Qc7 {[%emt 0:00:19]} Rh5 {[%emt 0:00:25]} 38. Bd2 {[%emt 0:00:23]} Be5 {[%emt 0:00:15]} 39. Qb7 {[%emt 0:00:45]} Rxh2+ {[%emt 0:00:09]} 40. Kf1 {[%emt 0:00:00]} Rh1+ {[%emt 0:00:00]} 41. Kg2 {[%emt 0:00:40]} Rh2+ {[%emt 0:08:09]} 42. Kf1 {[%emt 0:00:17]} Qxa2 {[%emt 0:00:13]} 43. Rb3 {[%emt 0:01:19]} Rf8 {[%emt 0:03:25]} 44. Qd5 {[%emt 0:00:57]} Qxd2 {[%emt 0:00:28]} 45. Rbd3 {[%emt 0:04:00]} Rh1+ {[%emt 0:02:02]} 46. Kg2 {[%emt 0:00:06]} Qe1 {[%emt 0:01:00]} 0-1